[Event "Titled Tuesday Blitz May 25 2021"]
[White "Woodward, Andy"]
[Black "Przybylski, Wojciech"]
[WhiteFideId "30953499"]
[BlackFideId "1117599"]
[WhiteElo "2597"]
[BlackElo "2317"]
[Result "0-1"]
[Round "08"]
[TimeControl "180+1"]
[Date "2021.05.25"]
[WhiteClock "0:00:23"]
[BlackClock "0:00:12"]

1. d4 {[%clk 0:03:00]}  Nf6 {[%clk 0:02:56]} 2. c4 {[%clk 0:03:01]}  e6 {[%clk 0:02:53]} 3. Nc3 {[%clk 0:03:01]}  Bb4 {[%clk 0:02:52]} 4. Qc2 {[%clk 0:03:01]}  d5 {[%clk 0:02:51]} 5. cxd5 {[%clk 0:03:01]}  Qxd5 {[%clk 0:02:50]} 6. Nf3 {[%clk 0:02:59]}  Qf5 {[%clk 0:02:50]} 7. Qxf5 {[%clk 0:02:59]}  exf5 {[%clk 0:02:49]} 8. a3 {[%clk 0:02:59]}  Be7 {[%clk 0:02:49]} 9. Bf4 {[%clk 0:02:59]}  c6 {[%clk 0:02:49]} 10. e3 {[%clk 0:03:00]}  Be6 {[%clk 0:02:48]} 11. Ng5 {[%clk 0:02:59]}  Nbd7 {[%clk 0:02:44]} 12. Nxe6 {[%clk 0:02:59]}  fxe6 {[%clk 0:02:43]} 13. Bc4 {[%clk 0:02:59]}  Nd5 {[%clk 0:02:43]} 14. O-O {[%clk 0:02:51]}  N7b6 {[%clk 0:02:38]} 15. Nxd5 {[%clk 0:02:48]}  Nxd5 {[%clk 0:02:26]} 16. Be5 {[%clk 0:02:45]}  Bf6 {[%clk 0:02:24]} 17. Bd6 {[%clk 0:02:43]}  Kd7 {[%clk 0:02:24]} 18. Bg3 {[%clk 0:02:39]}  g5 {[%clk 0:02:20]} 19. h3 {[%clk 0:02:33]}  Rhg8 {[%clk 0:02:04]} 20. Kh1 {[%clk 0:02:26]}  g4 {[%clk 0:01:55]} 21. Kh2 {[%clk 0:02:17]}  Rg6 {[%clk 0:01:51]} 22. Rae1 {[%clk 0:02:06]}  Re8 {[%clk 0:01:39]} 23. e4 {[%clk 0:01:57]}  f4 {[%clk 0:01:36]} 24. exd5 {[%clk 0:01:52]}  fxg3+ {[%clk 0:01:34]} 25. fxg3 {[%clk 0:01:53]}  exd5 {[%clk 0:01:32]} 26. Bd3 {[%clk 0:01:50]}  Rh6 {[%clk 0:01:22]} 27. Bf5+ {[%clk 0:01:43]}  Kd8 {[%clk 0:01:22]} 28. Rxe8+ {[%clk 0:01:42]}  Kxe8 {[%clk 0:01:22]} 29. Bxg4 {[%clk 0:01:43]}  Bxd4 {[%clk 0:01:19]} 30. b4 {[%clk 0:01:43]}  Rf6 {[%clk 0:01:15]} 31. Re1+ {[%clk 0:01:40]}  Kd8 {[%clk 0:01:14]} 32. Bh5 {[%clk 0:01:30]}  b6 {[%clk 0:01:11]} 33. Re8+ {[%clk 0:01:30]}  Kd7 {[%clk 0:01:07]} 34. Rh8 {[%clk 0:01:22]}  c5 {[%clk 0:01:04]} 35. Rxh7+ {[%clk 0:01:19]}  Kd6 {[%clk 0:01:01]} 36. bxc5+ {[%clk 0:01:05]}  bxc5 {[%clk 0:01:00]} 37. Bf3 {[%clk 0:01:05]}  c4 {[%clk 0:00:57]} 38. Rh5 {[%clk 0:01:04]}  Be5 {[%clk 0:00:57]} 39. Rh7 {[%clk 0:00:53]}  c3 {[%clk 0:00:54]} 40. Bd1 {[%clk 0:00:30]}  Rf1 {[%clk 0:00:50]} 41. Ba4 {[%clk 0:00:28]}  d4 {[%clk 0:00:46]} 42. Rd7+ {[%clk 0:00:27]}  Ke6 {[%clk 0:00:44]} 43. Rd8 {[%clk 0:00:24]}  Ra1 {[%clk 0:00:37]} 44. Bb3+ {[%clk 0:00:21]}  Ke7 {[%clk 0:00:35]} 45. Rd5 {[%clk 0:00:20]}  Bf6 {[%clk 0:00:34]} 46. a4 {[%clk 0:00:16]}  Ra3 {[%clk 0:00:32]} 47. Bc2 {[%clk 0:00:12]}  Ra2 {[%clk 0:00:31]} 48. Bf5 {[%clk 0:00:12]}  Rxa4 {[%clk 0:00:22]} 49. Rd7+ {[%clk 0:00:11]}  Ke8 {[%clk 0:00:20]} 50. h4 {[%clk 0:00:12]}  Be5 {[%clk 0:00:18]} 51. Rb7 {[%clk 0:00:11]}  Rc4 {[%clk 0:00:12]} 52. h5 {[%clk 0:00:08]}  c2 {[%clk 0:00:11]} 53. Bxc2 {[%clk 0:00:08]}  Rxc2 {[%clk 0:00:11]} 54. h6 {[%clk 0:00:09]}  Rc6 {[%clk 0:00:06]} 55. h7 {[%clk 0:00:09]}  Rh6+ {[%clk 0:00:06]} 56. Kg1 {[%clk 0:00:09]}  d3 {[%clk 0:00:06]} 57. Kf2 {[%clk 0:00:09]}  Bd4+ {[%clk 0:00:06]} 58. Ke1 {[%clk 0:00:08]}  Bc3+ {[%clk 0:00:06]} 59. Kf2 {[%clk 0:00:08]}  d2 {[%clk 0:00:05]} 60. Ke2 {[%clk 0:00:05]}  Rh1 {[%clk 0:00:05]} 61. h8=Q+ {[%clk 0:00:03]}  Rxh8 {[%clk 0:00:05]} 62. Rb8+ {[%clk 0:00:03]}  Kf7 {[%clk 0:00:04]} 63. Rxh8 {[%clk 0:00:04]}  Bxh8 {[%clk 0:00:04]} 64. Kxd2 {[%clk 0:00:05]}  Bd4 {[%clk 0:00:04]} 65. Kc2 {[%clk 0:00:06]}  Bg1 {[%clk 0:00:04]} 66. Kb3 {[%clk 0:00:07]}  Kg6 {[%clk 0:00:04]} 67. Kc4 {[%clk 0:00:08]}  Kg5 {[%clk 0:00:04]} 68. g4 {[%clk 0:00:09]}  Kxg4 {[%clk 0:00:04]} 69. Kb5 {[%clk 0:00:10]}  Kg3 {[%clk 0:00:05]} 70. Ka6 {[%clk 0:00:10]}  Kxg2 {[%clk 0:00:05]} 71. Kb7 {[%clk 0:00:11]}  Kf3 {[%clk 0:00:06]} 72. Ka6 {[%clk 0:00:12]}  Bf2 {[%clk 0:00:07]} 73. Kb5 {[%clk 0:00:13]}  Be3 {[%clk 0:00:07]} 74. Ka6 {[%clk 0:00:14]}  Ke2 {[%clk 0:00:08]} 75. Kb5 {[%clk 0:00:15]}  Kd3 {[%clk 0:00:09]} 76. Ka6 {[%clk 0:00:16]}  Bd4 {[%clk 0:00:09]} 77. Kb5 {[%clk 0:00:17]}  Kc3 {[%clk 0:00:10]} 78. Ka6 {[%clk 0:00:18]}  Kc4 {[%clk 0:00:10]} 79. Kb7 {[%clk 0:00:18]}  Kb5 {[%clk 0:00:10]} 80. Ka8 {[%clk 0:00:17]}  a5 {[%clk 0:00:10]} 81. Kb7 {[%clk 0:00:18]}  a4 {[%clk 0:00:11]} 82. Ka8 {[%clk 0:00:19]}  a3 {[%clk 0:00:12]} 83. Kb7 {[%clk 0:00:19]}  a2 {[%clk 0:00:12]} 84. Ka8 {[%clk 0:00:20]}  Bc3 {[%clk 0:00:12]} 85. Kb7 {[%clk 0:00:21]}  a1=Q {[%clk 0:00:12]} 86. Kc8 {[%clk 0:00:22]}  Qa7 {[%clk 0:00:12]} 87. Kd8 {[%clk 0:00:22]}  Bf6+ {[%clk 0:00:12]} 88. Kc8 {[%clk 0:00:22]}  Be5 {[%clk 0:00:12]} 89. Kd8 {[%clk 0:00:23]}  Bd6 {[%clk 0:00:12]} 90. Ke8 {[%clk 0:00:23]}  Qe7# {[%clk 0:00:12]} 0-1


[Site "https://www.chess.com"]

[Event "Titled Tuesday Blitz May 25 2021"]
[White "Xiong, Jeffery"]
[Black "Maghsoodloo, Parham"]
[WhiteFideId "2047640"]
[BlackFideId "12539929"]
[WhiteElo "2724"]
[BlackElo "2601"]
[Result "1-0"]
[Round "08"]
[TimeControl "180+1"]
[Date "2021.05.25"]
[WhiteClock "0:01:11"]
[BlackClock "0:00:02"]

1. d4 {[%clk 0:02:54]}  Nf6 {[%clk 0:02:47]} 2. c4 {[%clk 0:02:53]}  e6 {[%clk 0:02:47]} 3. Nc3 {[%clk 0:02:53]}  Bb4 {[%clk 0:02:46]} 4. Nf3 {[%clk 0:02:53]}  O-O {[%clk 0:02:45]} 5. Qc2 {[%clk 0:02:52]}  d6 {[%clk 0:02:44]} 6. a3 {[%clk 0:02:48]}  Bxc3+ {[%clk 0:02:43]} 7. Qxc3 {[%clk 0:02:49]}  Nbd7 {[%clk 0:02:43]} 8. e3 {[%clk 0:02:49]}  Re8 {[%clk 0:02:43]} 9. Be2 {[%clk 0:02:49]}  e5 {[%clk 0:02:43]} 10. O-O {[%clk 0:02:49]}  c6 {[%clk 0:02:41]} 11. b4 {[%clk 0:02:45]}  e4 {[%clk 0:02:40]} 12. Nd2 {[%clk 0:02:42]}  d5 {[%clk 0:02:39]} 13. b5 {[%clk 0:02:42]}  Nf8 {[%clk 0:02:34]} 14. a4 {[%clk 0:02:35]}  Bg4 {[%clk 0:02:33]} 15. Bxg4 {[%clk 0:02:30]}  Nxg4 {[%clk 0:02:33]} 16. h3 {[%clk 0:02:30]}  Nh6 {[%clk 0:02:26]} 17. Ba3 {[%clk 0:02:25]}  Re6 {[%clk 0:02:24]} 18. Bxf8 {[%clk 0:02:17]}  Kxf8 {[%clk 0:02:21]} 19. bxc6 {[%clk 0:02:14]}  bxc6 {[%clk 0:02:16]} 20. Rab1 {[%clk 0:02:14]}  Nf5 {[%clk 0:02:09]} 21. Rfc1 {[%clk 0:02:13]}  h5 {[%clk 0:01:39]} 22. cxd5 {[%clk 0:02:06]}  cxd5 {[%clk 0:01:39]} 23. Rb7 {[%clk 0:01:57]}  Nd6 {[%clk 0:01:31]} 24. Rc7 {[%clk 0:01:55]}  Qg5 {[%clk 0:01:29]} 25. Qc6 {[%clk 0:01:43]}  Rae8 {[%clk 0:01:26]} 26. Rd7 {[%clk 0:01:34]}  Rg6 {[%clk 0:00:55]} 27. g3 {[%clk 0:01:35]}  Ree6 {[%clk 0:00:21]} 28. Rc5 {[%clk 0:01:24]}  Kg8 {[%clk 0:00:16]} 29. Rxd5 {[%clk 0:01:23]}  Nf5 {[%clk 0:00:09]} 30. Qc8+ {[%clk 0:01:18]}  Kh7 {[%clk 0:00:06]} 31. Rxf7 {[%clk 0:01:15]}  Ne7 {[%clk 0:00:02]} 32. Rxg5 {[%clk 0:01:11]} 1-0


[Site "https://www.chess.com"]

[Event "Titled Tuesday Blitz May 25 2021"]
[White "Yuan, Qingyu"]
[Black "Chernomordik, Pavel"]
[WhiteFideId "8609772"]
[BlackFideId "2804530"]
[WhiteElo "2754"]
[BlackElo "2458"]
[Result "1-0"]
[Round "08"]
[TimeControl "180+1"]
[Date "2021.05.25"]
[WhiteClock "0:00:48"]
[BlackClock "0:01:13"]

1. e4 {[%clk 0:03:00]}  g6 {[%clk 0:03:00]} 2. d4 {[%clk 0:03:00]}  Bg7 {[%clk 0:03:00]} 3. Nf3 {[%clk 0:03:00]}  d6 {[%clk 0:03:01]} 4. c3 {[%clk 0:02:59]}  Nf6 {[%clk 0:02:59]} 5. Bd3 {[%clk 0:02:59]}  c5 {[%clk 0:02:59]} 6. dxc5 {[%clk 0:02:57]}  dxc5 {[%clk 0:02:59]} 7. O-O {[%clk 0:02:54]}  Nc6 {[%clk 0:02:59]} 8. h3 {[%clk 0:02:52]}  O-O {[%clk 0:02:58]} 9. Qe2 {[%clk 0:02:51]}  Qc7 {[%clk 0:02:57]} 10. Bg5 {[%clk 0:02:43]}  Nh5 {[%clk 0:02:51]} 11. Qe3 {[%clk 0:02:26]}  b6 {[%clk 0:02:46]} 12. Nbd2 {[%clk 0:02:21]}  Bb7 {[%clk 0:02:46]} 13. Rfd1 {[%clk 0:02:16]}  Ne5 {[%clk 0:02:41]} 14. Nxe5 {[%clk 0:01:58]}  Bxe5 {[%clk 0:02:40]} 15. Nf3 {[%clk 0:01:42]}  Bf4 {[%clk 0:02:33]} 16. Bxf4 {[%clk 0:01:42]}  Nxf4 {[%clk 0:02:32]} 17. Bc4 {[%clk 0:01:39]}  e6 {[%clk 0:02:26]} 18. g3 {[%clk 0:01:27]}  Nh5 {[%clk 0:02:20]} 19. Re1 {[%clk 0:01:12]}  Rad8 {[%clk 0:02:03]} 20. Qh6 {[%clk 0:01:03]}  Nxg3 {[%clk 0:01:43]} 21. Ng5 {[%clk 0:00:58]}  f6 {[%clk 0:01:32]} 22. Nxe6 {[%clk 0:00:57]}  Qe7 {[%clk 0:01:16]} 23. Nxf8+ {[%clk 0:00:48]}  Kh8 {[%clk 0:01:13]} 24. Nxg6# {[%clk 0:00:48]} 1-0


[Site "https://www.chess.com"]

[Event "Titled Tuesday Blitz May 25 2021"]
[White "elohunter1999"]
[Black "Kekic, Armin"]
[BlackFideId "14401274"]
[WhiteElo "2558"]
[BlackElo "2359"]
[Result "1-0"]
[Round "08"]
[TimeControl "180+1"]
[Date "2021.05.25"]
[WhiteClock "0:01:11"]
[BlackClock "0:00:18"]

1. d4 {[%clk 0:03:00]}  d6 {[%clk 0:02:58]} 2. e4 {[%clk 0:02:58]}  e5 {[%clk 0:02:57]} 3. Nf3 {[%clk 0:02:56]}  Nc6 {[%clk 0:02:56]} 4. c3 {[%clk 0:02:43]}  Nf6 {[%clk 0:02:54]} 5. Bd3 {[%clk 0:02:41]}  Be7 {[%clk 0:02:54]} 6. O-O {[%clk 0:02:38]}  O-O {[%clk 0:02:54]} 7. Re1 {[%clk 0:02:36]}  h6 {[%clk 0:02:53]} 8. Nbd2 {[%clk 0:02:36]}  Re8 {[%clk 0:02:53]} 9. Nf1 {[%clk 0:02:35]}  Bf8 {[%clk 0:02:52]} 10. Ng3 {[%clk 0:02:33]}  g6 {[%clk 0:02:52]} 11. h3 {[%clk 0:02:34]}  Bg7 {[%clk 0:02:52]} 12. Be3 {[%clk 0:02:34]}  Qe7 {[%clk 0:02:49]} 13. Qd2 {[%clk 0:02:32]}  Kh7 {[%clk 0:02:48]} 14. Rad1 {[%clk 0:02:32]}  a6 {[%clk 0:02:43]} 15. a3 {[%clk 0:02:19]}  Bd7 {[%clk 0:02:35]} 16. b4 {[%clk 0:02:15]}  Rad8 {[%clk 0:02:34]} 17. d5 {[%clk 0:02:12]}  Nb8 {[%clk 0:02:32]} 18. c4 {[%clk 0:02:13]}  Ng8 {[%clk 0:02:03]} 19. c5 {[%clk 0:02:09]}  Rf8 {[%clk 0:02:03]} 20. Qc2 {[%clk 0:02:08]}  h5 {[%clk 0:01:58]} 21. Rc1 {[%clk 0:01:54]}  Rc8 {[%clk 0:01:55]} 22. a4 {[%clk 0:01:46]}  Bh6 {[%clk 0:01:53]} 23. b5 {[%clk 0:01:41]}  Bxe3 {[%clk 0:01:52]} 24. Rxe3 {[%clk 0:01:40]}  h4 {[%clk 0:00:51]} 25. Nf1 {[%clk 0:01:38]}  axb5 {[%clk 0:00:51]} 26. axb5 {[%clk 0:01:36]}  dxc5 {[%clk 0:00:48]} 27. Qxc5 {[%clk 0:01:36]}  Qf6 {[%clk 0:00:46]} 28. Qc3 {[%clk 0:01:28]}  Rfe8 {[%clk 0:00:43]} 29. N1d2 {[%clk 0:01:25]}  g5 {[%clk 0:00:37]} 30. Nc4 {[%clk 0:01:24]}  Bxb5 {[%clk 0:00:37]} 31. Ncxe5 {[%clk 0:01:22]}  Bxd3 {[%clk 0:00:36]} 32. Rxd3 {[%clk 0:01:18]}  Qe7 {[%clk 0:00:24]} 33. Ng4 {[%clk 0:01:11]}  Qxe4 {[%clk 0:00:18]} 34. Nxg5+ {[%clk 0:01:11]} 1-0


[Site "https://www.chess.com"]

[Event "Titled Tuesday Blitz May 25 2021"]
[White "freshfoodcompany"]
[Black "korbul"]
[WhiteElo "2433"]
[BlackElo "2564"]
[Result "1-0"]
[Round "08"]
[TimeControl "180+1"]
[Date "2021.05.25"]
[WhiteClock "0:00:11"]
[BlackClock "0:00:14"]

1. d4 {[%clk 0:03:00]}  Nf6 {[%clk 0:02:59]} 2. c4 {[%clk 0:03:00]}  e6 {[%clk 0:02:59]} 3. Nf3 {[%clk 0:03:00]}  b6 {[%clk 0:02:59]} 4. g3 {[%clk 0:03:00]}  Ba6 {[%clk 0:02:58]} 5. b3 {[%clk 0:02:59]}  Bb7 {[%clk 0:02:58]} 6. Bg2 {[%clk 0:02:57]}  Bb4+ {[%clk 0:02:57]} 7. Bd2 {[%clk 0:02:57]}  a5 {[%clk 0:02:58]} 8. O-O {[%clk 0:02:55]}  O-O {[%clk 0:02:58]} 9. Nc3 {[%clk 0:02:54]}  d6 {[%clk 0:02:58]} 10. Qc2 {[%clk 0:02:54]}  Nbd7 {[%clk 0:02:56]} 11. Rad1 {[%clk 0:02:49]}  h6 {[%clk 0:02:55]} 12. Rfe1 {[%clk 0:02:49]}  Bxc3 {[%clk 0:02:55]} 13. Bxc3 {[%clk 0:02:48]}  Be4 {[%clk 0:02:55]} 14. Qb2 {[%clk 0:02:48]}  Qb8 {[%clk 0:02:55]} 15. Nd2 {[%clk 0:02:46]}  Bxg2 {[%clk 0:02:54]} 16. Kxg2 {[%clk 0:02:47]}  d5 {[%clk 0:02:54]} 17. e4 {[%clk 0:02:47]}  c6 {[%clk 0:02:51]} 18. f4 {[%clk 0:02:39]}  b5 {[%clk 0:02:49]} 19. e5 {[%clk 0:02:33]}  Ne8 {[%clk 0:02:47]} 20. cxd5 {[%clk 0:02:28]}  cxd5 {[%clk 0:02:45]} 21. Nf3 {[%clk 0:02:27]}  Nc7 {[%clk 0:02:39]} 22. Rc1 {[%clk 0:02:25]}  Rc8 {[%clk 0:02:38]} 23. Rc2 {[%clk 0:02:24]}  b4 {[%clk 0:02:36]} 24. Bd2 {[%clk 0:02:24]}  Nb5 {[%clk 0:02:36]} 25. Rec1 {[%clk 0:02:23]}  Qb7 {[%clk 0:02:36]} 26. Rxc8+ {[%clk 0:02:15]}  Rxc8 {[%clk 0:02:36]} 27. Kf2 {[%clk 0:02:10]}  Nf8 {[%clk 0:02:28]} 28. Ke3 {[%clk 0:02:08]}  Ng6 {[%clk 0:02:27]} 29. Kd3 {[%clk 0:02:07]}  Ne7 {[%clk 0:02:25]} 30. g4 {[%clk 0:02:06]}  Na3 {[%clk 0:02:18]} 31. Rxc8+ {[%clk 0:02:02]}  Nxc8 {[%clk 0:02:11]} 32. Qc1 {[%clk 0:01:57]}  Ne7 {[%clk 0:02:01]} 33. Qc5 {[%clk 0:01:51]}  Nb5 {[%clk 0:01:59]} 34. Ne1 {[%clk 0:01:44]}  h5 {[%clk 0:01:57]} 35. h3 {[%clk 0:01:42]}  hxg4 {[%clk 0:01:57]} 36. hxg4 {[%clk 0:01:42]}  Ng6 {[%clk 0:01:57]} 37. f5 {[%clk 0:01:39]}  Ne7 {[%clk 0:01:49]} 38. f6 {[%clk 0:01:33]}  Ng6 {[%clk 0:01:47]} 39. g5 {[%clk 0:01:27]}  Qa6 {[%clk 0:01:30]} 40. Ke3 {[%clk 0:01:21]}  Nh4 {[%clk 0:01:20]} 41. Nf3 {[%clk 0:01:08]}  Nf5+ {[%clk 0:01:19]} 42. Kf2 {[%clk 0:01:05]}  Nc3 {[%clk 0:01:05]} 43. Bxc3 {[%clk 0:01:04]}  bxc3 {[%clk 0:01:05]} 44. Qxc3 {[%clk 0:01:04]}  Kh7 {[%clk 0:01:05]} 45. Qc2 {[%clk 0:01:01]}  Qb6 {[%clk 0:00:56]} 46. Qd3 {[%clk 0:00:59]}  a4 {[%clk 0:00:54]} 47. bxa4 {[%clk 0:00:52]}  Qb2+ {[%clk 0:00:53]} 48. Qd2 {[%clk 0:00:50]}  Qa3 {[%clk 0:00:50]} 49. Qc2 {[%clk 0:00:46]}  Qe3+ {[%clk 0:00:48]} 50. Kg2 {[%clk 0:00:44]}  Qf4 {[%clk 0:00:44]} 51. Kf2 {[%clk 0:00:32]}  Kg6 {[%clk 0:00:40]} 52. Qd3 {[%clk 0:00:24]}  gxf6 {[%clk 0:00:34]} 53. gxf6 {[%clk 0:00:22]}  Kh5 {[%clk 0:00:33]} 54. Qe2 {[%clk 0:00:20]}  Kg6 {[%clk 0:00:25]} 55. Qd3 {[%clk 0:00:18]}  Qg3+ {[%clk 0:00:25]} 56. Ke2 {[%clk 0:00:17]}  Kh5 {[%clk 0:00:24]} 57. Ne1 {[%clk 0:00:15]}  Qh2+ {[%clk 0:00:21]} 58. Kd1 {[%clk 0:00:14]}  Kg6 {[%clk 0:00:15]} 59. Nf3 {[%clk 0:00:12]}  Qxa2 {[%clk 0:00:14]} 60. Nh4+ {[%clk 0:00:12]}  Kg5 {[%clk 0:00:14]} 61. Nxf5 {[%clk 0:00:12]}  exf5 {[%clk 0:00:14]} 62. Qd2+ {[%clk 0:00:11]}  Qxd2+ {[%clk 0:00:14]} 63. Kxd2 {[%clk 0:00:11]} 1-0


[Site "https://www.chess.com"]

[Event "Titled Tuesday Blitz May 25 2021"]
[White "kleopl"]
[Black "Iskusnyh, Sergei"]
[BlackFideId "4120027"]
[WhiteElo "2482"]
[BlackElo "2492"]
[Result "0-1"]
[Round "08"]
[TimeControl "180+1"]
[Date "2021.05.25"]
[WhiteClock "0:00:31"]
[BlackClock "0:00:07"]

1. c4 {[%clk 0:03:00]}  c5 {[%clk 0:02:58]} 2. Nf3 {[%clk 0:03:00]}  g6 {[%clk 0:02:57]} 3. e4 {[%clk 0:02:56]}  Nc6 {[%clk 0:02:49]} 4. d4 {[%clk 0:02:56]}  cxd4 {[%clk 0:02:49]} 5. Nxd4 {[%clk 0:02:57]}  Nf6 {[%clk 0:02:50]} 6. Nc3 {[%clk 0:02:55]}  d6 {[%clk 0:02:50]} 7. Be2 {[%clk 0:02:53]}  Nxd4 {[%clk 0:02:50]} 8. Qxd4 {[%clk 0:02:53]}  Bg7 {[%clk 0:02:51]} 9. O-O {[%clk 0:02:52]}  O-O {[%clk 0:02:50]} 10. Qd2 {[%clk 0:02:49]}  Be6 {[%clk 0:02:36]} 11. Rb1 {[%clk 0:02:44]}  Qa5 {[%clk 0:01:57]} 12. b3 {[%clk 0:02:40]}  Rfc8 {[%clk 0:01:50]} 13. Nd5 {[%clk 0:02:31]}  Qxd2 {[%clk 0:01:43]} 14. Nxf6+ {[%clk 0:02:28]}  Bxf6 {[%clk 0:01:40]} 15. Bxd2 {[%clk 0:02:29]}  b5 {[%clk 0:01:38]} 16. Rfc1 {[%clk 0:01:52]}  bxc4 {[%clk 0:01:37]} 17. Bxc4 {[%clk 0:01:51]}  Bxc4 {[%clk 0:01:36]} 18. Rxc4 {[%clk 0:01:52]}  Rxc4 {[%clk 0:01:35]} 19. bxc4 {[%clk 0:01:52]}  h5 {[%clk 0:01:26]} 20. f3 {[%clk 0:01:51]}  Rc8 {[%clk 0:01:25]} 21. Rb4 {[%clk 0:01:46]}  Rc6 {[%clk 0:01:19]} 22. Ra4 {[%clk 0:01:44]}  a6 {[%clk 0:01:16]} 23. Be3 {[%clk 0:01:43]}  Kf8 {[%clk 0:01:09]} 24. Kf1 {[%clk 0:01:43]}  Ke8 {[%clk 0:01:10]} 25. Ke2 {[%clk 0:01:43]}  Kd7 {[%clk 0:01:10]} 26. Kd3 {[%clk 0:01:44]}  g5 {[%clk 0:01:00]} 27. Ra5 {[%clk 0:01:39]}  Be5 {[%clk 0:00:37]} 28. h3 {[%clk 0:01:35]}  f6 {[%clk 0:00:35]} 29. g4 {[%clk 0:01:28]}  hxg4 {[%clk 0:00:27]} 30. hxg4 {[%clk 0:01:26]}  Kc7 {[%clk 0:00:23]} 31. Ra3 {[%clk 0:01:16]}  Kc8 {[%clk 0:00:20]} 32. Rb3 {[%clk 0:01:14]}  Kd7 {[%clk 0:00:16]} 33. Rb7+ {[%clk 0:01:14]}  Ke6 {[%clk 0:00:16]} 34. Ra7 {[%clk 0:01:11]}  Bb2 {[%clk 0:00:16]} 35. a4 {[%clk 0:01:05]}  Ba3 {[%clk 0:00:15]} 36. Bd4 {[%clk 0:00:48]}  Bb4 {[%clk 0:00:14]} 37. Rb7 {[%clk 0:00:46]}  a5 {[%clk 0:00:13]} 38. Rb5 {[%clk 0:00:43]}  Rc8 {[%clk 0:00:12]} 39. Bb6 {[%clk 0:00:42]}  Rh8 {[%clk 0:00:11]} 40. Bxa5 {[%clk 0:00:41]}  Bxa5 {[%clk 0:00:12]} 41. Rxa5 {[%clk 0:00:42]}  Rh3 {[%clk 0:00:12]} 42. Ke3 {[%clk 0:00:42]}  Rh1 {[%clk 0:00:12]} 43. c5 {[%clk 0:00:42]}  dxc5 {[%clk 0:00:11]} 44. Rxc5 {[%clk 0:00:42]}  Ra1 {[%clk 0:00:12]} 45. a5 {[%clk 0:00:42]}  Ra3+ {[%clk 0:00:12]} 46. Kf2 {[%clk 0:00:41]}  Kd6 {[%clk 0:00:12]} 47. Rb5 {[%clk 0:00:41]}  Ke6 {[%clk 0:00:12]} 48. Rb6+ {[%clk 0:00:41]}  Ke5 {[%clk 0:00:12]} 49. a6 {[%clk 0:00:41]}  Kf4 {[%clk 0:00:12]} 50. Ke2 {[%clk 0:00:38]}  Ra2+ {[%clk 0:00:11]} 51. Kd3 {[%clk 0:00:37]}  Kxf3 {[%clk 0:00:12]} 52. Re6 {[%clk 0:00:38]}  Kxg4 {[%clk 0:00:11]} 53. Kc4 {[%clk 0:00:36]}  Kf3 {[%clk 0:00:10]} 54. Kb5 {[%clk 0:00:36]}  g4 {[%clk 0:00:11]} 55. Rxe7 {[%clk 0:00:37]}  g3 {[%clk 0:00:11]} 56. a7 {[%clk 0:00:36]}  g2 {[%clk 0:00:11]} 57. Rg7 {[%clk 0:00:35]}  Rxa7 {[%clk 0:00:11]} 58. Rg6 {[%clk 0:00:33]}  Rf7 {[%clk 0:00:06]} 59. Kc4 {[%clk 0:00:32]}  Kxe4 {[%clk 0:00:06]} 60. Rxg2 {[%clk 0:00:31]}  Rc7+ {[%clk 0:00:07]} 61. Kb3 {[%clk 0:00:30]}  f5 {[%clk 0:00:07]} 62. Re2+ {[%clk 0:00:30]}  Kf3 {[%clk 0:00:07]} 63. Re1 {[%clk 0:00:31]}  f4 {[%clk 0:00:07]} 0-1


[Site "https://www.chess.com"]

[Event "Titled Tuesday Blitz May 25 2021"]
[White "Abdrlauf, Elham"]
[Black "Ozen, Bahadir"]
[WhiteFideId "1533533"]
[BlackFideId "6337058"]
[WhiteElo "2326"]
[BlackElo "2503"]
[Result "1/2-1/2"]
[Round "09"]
[TimeControl "180+1"]
[Date "2021.05.25"]
[WhiteClock "0:00:04"]
[BlackClock "0:00:06"]

1. e4 {[%clk 0:03:00]}  e5 {[%clk 0:02:57]} 2. Nc3 {[%clk 0:03:00]}  Nf6 {[%clk 0:02:57]} 3. Bc4 {[%clk 0:03:01]}  Bc5 {[%clk 0:02:56]} 4. d3 {[%clk 0:03:01]}  d6 {[%clk 0:02:55]} 5. f4 {[%clk 0:03:02]}  Nc6 {[%clk 0:02:53]} 6. Nf3 {[%clk 0:03:02]}  Bg4 {[%clk 0:02:54]} 7. Na4 {[%clk 0:03:01]}  Bb6 {[%clk 0:02:09]} 8. Nxb6 {[%clk 0:03:01]}  axb6 {[%clk 0:02:10]} 9. c3 {[%clk 0:03:01]}  O-O {[%clk 0:02:09]} 10. O-O {[%clk 0:02:41]}  exf4 {[%clk 0:02:07]} 11. Bxf4 {[%clk 0:02:40]}  d5 {[%clk 0:02:08]} 12. exd5 {[%clk 0:02:30]}  Nxd5 {[%clk 0:02:09]} 13. Qd2 {[%clk 0:02:30]}  Na5 {[%clk 0:01:49]} 14. Bxd5 {[%clk 0:02:19]}  Qxd5 {[%clk 0:01:50]} 15. Ne5 {[%clk 0:02:07]}  Be6 {[%clk 0:01:48]} 16. d4 {[%clk 0:01:47]}  f6 {[%clk 0:01:45]} 17. Nd3 {[%clk 0:01:35]}  Nc4 {[%clk 0:01:43]} 18. Qf2 {[%clk 0:01:34]}  Qd7 {[%clk 0:01:24]} 19. b3 {[%clk 0:01:29]}  Nd6 {[%clk 0:01:24]} 20. c4 {[%clk 0:01:25]}  Rfe8 {[%clk 0:01:17]} 21. d5 {[%clk 0:01:23]}  Bf7 {[%clk 0:01:16]} 22. Rfe1 {[%clk 0:01:16]}  Bg6 {[%clk 0:01:16]} 23. Bxd6 {[%clk 0:01:02]}  Bxd3 {[%clk 0:01:10]} 24. Bf4 {[%clk 0:01:02]}  b5 {[%clk 0:01:04]} 25. Qd4 {[%clk 0:00:49]}  bxc4 {[%clk 0:01:03]} 26. bxc4 {[%clk 0:00:50]}  Bg6 {[%clk 0:01:03]} 27. c5 {[%clk 0:00:37]}  Bf7 {[%clk 0:00:51]} 28. a4 {[%clk 0:00:20]}  Qxd5 {[%clk 0:00:44]} 29. Qxd5 {[%clk 0:00:18]}  Bxd5 {[%clk 0:00:45]} 30. Rxe8+ {[%clk 0:00:17]}  Rxe8 {[%clk 0:00:45]} 31. Bxc7 {[%clk 0:00:18]}  Re2 {[%clk 0:00:45]} 32. Ra3 {[%clk 0:00:02]}  Rxg2+ {[%clk 0:00:44]} 33. Kf1 {[%clk 0:00:03]}  Rc2 {[%clk 0:00:44]} 34. Bd6 {[%clk 0:00:03]}  Kf7 {[%clk 0:00:42]} 35. a5 {[%clk 0:00:02]}  g5 {[%clk 0:00:40]} 36. Ke1 {[%clk 0:00:02]}  Bc4 {[%clk 0:00:40]} 37. Re3 {[%clk 0:00:02]}  Be6 {[%clk 0:00:29]} 38. Ra3 {[%clk 0:00:02]}  h5 {[%clk 0:00:20]} 39. a6 {[%clk 0:00:02]}  bxa6 {[%clk 0:00:21]} 40. Rxa6 {[%clk 0:00:03]}  Bd5 {[%clk 0:00:22]} 41. Ra7+ {[%clk 0:00:01]}  Kg6 {[%clk 0:00:23]} 42. Re7 {[%clk 0:00:02]}  h4 {[%clk 0:00:23]} 43. Re8 {[%clk 0:00:02]}  Kf5 {[%clk 0:00:19]} 44. Kd1 {[%clk 0:00:02]}  Rc4 {[%clk 0:00:18]} 45. Kd2 {[%clk 0:00:02]}  Be4 {[%clk 0:00:19]} 46. Ke3 {[%clk 0:00:02]}  Rc3+ {[%clk 0:00:19]} 47. Kd4 {[%clk 0:00:02]}  Rd3+ {[%clk 0:00:18]} 48. Kc4 {[%clk 0:00:02]}  Rd1 {[%clk 0:00:18]} 49. Kc3 {[%clk 0:00:02]}  g4 {[%clk 0:00:16]} 50. Rh8 {[%clk 0:00:02]}  Kg5 {[%clk 0:00:11]} 51. Rg8+ {[%clk 0:00:02]}  Kf5 {[%clk 0:00:06]} 52. Rh8 {[%clk 0:00:02]}  Rd3+ {[%clk 0:00:05]} 53. Kc4 {[%clk 0:00:02]}  g3 {[%clk 0:00:06]} 54. hxg3 {[%clk 0:00:01]}  hxg3 {[%clk 0:00:07]} 55. Rg8 {[%clk 0:00:01]}  g2 {[%clk 0:00:05]} 56. Rxg2 {[%clk 0:00:01]}  Bxg2 {[%clk 0:00:04]} 57. Kxd3 {[%clk 0:00:02]}  Bc6 {[%clk 0:00:04]} 58. Kd4 {[%clk 0:00:02]}  Ke6 {[%clk 0:00:05]} 59. Ke3 {[%clk 0:00:03]}  Bd5 {[%clk 0:00:05]} 60. Kf4 {[%clk 0:00:04]}  Bc6 {[%clk 0:00:06]} 61. Ke3 {[%clk 0:00:04]} 1/2-1/2


[Site "https://www.chess.com"]